fUSD/lending_fUSD_20260219
["ID","MTS","AMOUNT","RATE_DAILY","PERIOD"]
[405992748,1771512641151,-487.0,0.000179,2]
[405992749,1771512641162,-487.0,0.000179,2]
[405992750,1771512641171,-487.0,0.000179,2]
[405992751,1771512641181,-487.0,0.000179,2]
[405992752,1771512641193,-487.0,0.000179,2]
[405992753,1771512641203,-487.0,0.000179,2]
[405992754,1771512641212,-487.0,0.000179,2]
[405992755,1771512641222,-649.9,0.000179,2]
[405992756,1771512641231,-3532.8861215,0.00017986,2]
[405992757,1771512641241,-3611.9174601,0.00017986,2]
[405992758,1771512641251,-9504.3408198,0.00017986,2]
[405992759,1771512641261,-288.77330388,0.00017996,2]
[405992760,1771512641270,-500.0,0.00017998,5]
[405992761,1771512641280,-500.0,0.00017998,5]
[405992762,1771512641290,-500.0,0.00017998,5]
[405992763,1771512641299,-500.0,0.00017998,5]
[405992764,1771512641309,-500.0,0.00017998,5]
[405992765,1771512641319,-500.0,0.00017998,5]
[405992766,1771512641328,-500.0,0.00017998,5]
[405992767,1771512641337,-500.0,0.00017998,5]
[405992768,1771512641347,-500.0,0.00017998,5]
[405992769,1771512641357,-500.0,0.00017998,5]
[405992770,1771512641367,-500.0,0.00017998,5]
[405992771,1771512641377,-500.0,0.00017998,5]
[405992772,1771512641390,-500.0,0.00017998,5]
[405992773,1771512641400,-500.0,0.00017998,5]
[405992774,1771512641409,-500.0,0.00017998,5]
[405992775,1771512641419,-500.0,0.00017998,5]
[405992776,1771512641428,-500.0,0.00017998,5]
[405992777,1771512641438,-222.30735036,0.00017998,5]
[405992778,1771512641447,-500.0,0.00017998,5]
[405992779,1771512641457,-500.0,0.00017998,5]
[405992780,1771512641467,-500.0,0.00017998,5]
[405992781,1771512641478,-500.0,0.00017998,5]
[405992782,1771512641487,-151.0,0.00017998,5]
[405992783,1771512641496,-151.0,0.00017998,5]
[405992784,1771512641506,-151.0,0.00017998,5]
[405992785,1771512641516,-151.0,0.00017998,5]
[405992786,1771512641525,-151.0,0.00017998,5]
[405992787,1771512641535,-151.0,0.00017998,5]
[405992788,1771512641545,-151.0,0.00017998,5]
[405992789,1771512641555,-151.0,0.00017998,5]
[405992790,1771512641829,-693.3919763,0.00017998,5]
[405992791,1771512641843,-151.0,0.00017998,5]
[405992792,1771512641852,-151.0,0.00017998,5]
[405992793,1771512641862,-719.04747942,0.00017998,5]
[405992794,1771512641871,-151.0,0.00017998,5]
[405992795,1771512641880,-745.65223616,0.00017998,5]
[405992796,1771512641891,-151.0,0.00017998,5]
[405992797,1771512641900,-773.2413689,0.00017998,5]
[405992798,1771512641911,-801.85129955,0.00017998,5]
[405992799,1771512641922,-831.51979763,0.00017998,5]
[405992800,1771512641932,-862.28603014,0.00017998,5]
[405992801,1771512641941,-894.19061326,0.00017998,5]
[405992802,1771512641950,-927.27566595,0.00017998,5]
[405992803,1771512641960,-961.58486559,0.00017998,5]
[405992804,1771512641970,-997.16350561,0.00017998,5]
[405992805,1771512641980,-300.0,0.00017999,2]
[405992806,1771512641990,-29448.2209035,0.00018,2]
[405992807,1771512642001,-15752.84980699,0.00018,2]
[405992811,1771512645374,-124906.20270139,0.00018,2]
[405992814,1771512645669,-273.0,0.00018,2]
[405992817,1771512646410,-27092.50518377,0.00018,2]
[405992818,1771512646477,-7769.92190231,0.00018,2]
[405992999,1771513335460,500.0,0.00015,30]
[405993000,1771513335500,800.0,0.00015,30]
[405993001,1771513335975,500.0,0.00015,30]
[405993002,1771513336015,800.0,0.00015,30]
[405993003,1771513336192,500.0,0.00015,30]
[405993004,1771513336232,500.0,0.00015,30]
[405993005,1771513336314,500.0,0.00015,30]
[405993006,1771513336351,500.0,0.00015,30]
[405993007,1771513336451,500.0,0.00015,30]
[405993008,1771513336520,800.0,0.00015,30]
[405993009,1771513336708,500.0,0.00015,30]
[405993010,1771513337005,500.0,0.00015,30]
[405993011,1771513337059,500.0,0.00015,30]
[405993012,1771513337121,800.0,0.00015,30]
[405993013,1771513337213,500.0,0.00015,30]
[405993014,1771513337310,500.0,0.00015,30]
[405993015,1771513337451,500.0,0.00015,30]
[405993016,1771513337589,800.0,0.00015,30]
[405993017,1771513337722,500.0,0.00015,30]
[405993018,1771513337988,500.0,0.00015,30]
[405993019,1771513338084,800.0,0.00015,30]
[405993020,1771513338232,500.0,0.00015,30]
[405993021,1771513338586,800.0,0.00015,30]
[405993022,1771513338746,500.0,0.00015,30]
[405993023,1771513339052,500.0,0.00015,30]
[405993024,1771513339155,500.7,0.00015,30]
[405993025,1771513339245,500.0,0.00015,30]
[405993026,1771513339614,800.0,0.00015,30]
[405993027,1771513339754,500.0,0.00015,30]
[405993028,1771513339985,800.0,0.00015,30]
[405993029,1771513340149,800.0,0.00015,30]
[405993030,1771513340274,500.0,0.00015,30]
[405993031,1771513340487,800.0,0.00015,30]
[405993032,1771513340710,800.0,0.00015,30]
[405993033,1771513340778,500.0,0.00015,30]
[405993034,1771513340983,800.0,0.00015,30]
[405993035,1771513341231,800.0,0.00015,30]
[405993036,1771513341303,500.0,0.00015,30]
[405993037,1771513341491,800.0,0.00015,30]
[405993038,1771513341758,800.0,0.00015,30]
[405993039,1771513342348,500.0,0.00015,30]
[405993040,1771513342386,800.0,0.00015,30]
[405993041,1771513342427,500.0,0.00015,30]
[405993042,1771513342480,500.0,0.00015,30]
[405993043,1771513342517,800.0,0.00015,30]
[405993044,1771513342597,2500.0,0.00015,30]
[405993045,1771513342790,500.0,0.00015,30]
[405993047,1771513342828,800.0,0.00015,30]
[405993050,1771513342866,500.0,0.00015,30]
[405993055,1771513342999,800.0,0.00015,30]
[405993059,1771513343060,500.0,0.00015,30]
[405993072,1771513343405,500.0,0.00015,30]
[405993080,1771513343605,500.0,0.00015,30]
[405993082,1771513343644,2500.0,0.00015,30]
[405993093,1771513343937,500.0,0.00015,30]
[405993094,1771513344007,800.0,0.00015,30]
[405993095,1771513344293,500.0,0.00015,30]
[405993096,1771513344330,2500.0,0.00015,30]
[405993097,1771513344381,500.0,0.00015,30]
[405993098,1771513344430,607.23173059,0.00015,30]
[405993099,1771513344471,500.0,0.00015,30]
[405993100,1771513344512,800.0,0.00015,30]
[405993101,1771513344556,500.0,0.00015,30]
[405993102,1771513344637,500.0,0.00015,30]
[405993103,1771513344675,2500.0,0.00015,30]
[405993104,1771513344740,500.49609268,0.00015,30]
[405993105,1771513345122,500.0,0.00015,30]
[405993106,1771513345164,720.91798544,0.00015,30]
[405993107,1771513345427,500.0,0.00015,30]
[405993108,1771513345640,800.0,0.00015,30]
[405993109,1771513345718,2500.0,0.00015,30]
[405993110,1771513345759,500.0,0.00015,30]
[405993111,1771513345979,500.0,0.00015,30]
[405993112,1771513346023,800.0,0.00015,30]
[405993113,1771513346182,2500.0,0.00015,30]
[405993114,1771513346227,500.0,0.00015,30]
[405993115,1771513346472,500.0,0.00015,30]
[405993116,1771513346663,800.0,0.00015,30]
[405993117,1771513346706,2500.0,0.00015,30]
[405993118,1771513347197,800.0,0.00015,30]
[405993119,1771513347241,2500.0,0.00015,30]
[405993120,1771513347887,500.0,0.00015,30]
[405993121,1771513348227,2500.0,0.00015,30]
[405993122,1771513348267,800.0,0.00015,30]
[405993123,1771513348336,500.0,0.00015,30]
[405993124,1771513348400,500.0,0.00015,30]
[405993125,1771513348707,800.0,0.00015,30]
[405993126,1771513348812,500.0,0.00015,30]
[405993127,1771513349231,2500.0,0.00015,30]
[405993128,1771513349731,2500.0,0.00015,30]
[405993129,1771513350047,500.0,0.00015,30]
[405993130,1771513350221,2500.0,0.00015,30]
[405993131,1771513350434,500.0,0.00015,30]
[405993132,1771513350560,500.0,0.00015,30]
[405993133,1771513350701,2500.0,0.00015,30]
[405993134,1771513350917,500.0,0.00015,30]
[405993135,1771513351208,500.0,0.00015,30]
[405993136,1771513351271,2500.0,0.00015,30]
[405993137,1771513351449,500.0,0.00015,30]
[405993138,1771513351581,500.0,0.00015,30]
[405993139,1771513351713,2500.0,0.00015,30]
[405993140,1771513352449,500.0,0.00015,30]
[405993141,1771513352968,500.0,0.00015,30]
[405993142,1771513353533,500.0,0.00015,30]
[405993143,1771513354047,500.0,0.00015,30]
[405993144,1771513354561,500.0,0.00015,30]
[405993211,1771513632062,500.0,8.8e-05,3]
[405993212,1771513634211,1000.0,8.9e-05,3]
[405993213,1771513636360,1500.0,9e-05,3]
[405993214,1771513644217,500.0,0.00015,30]
[405993215,1771513646336,500.0,0.00015,30]
[405993216,1771513646836,500.0,0.00015,30]
[405993217,1771513647352,500.0,0.00015,30]
[405993218,1771513649674,500.0,0.00015,30]
[405993219,1771513650181,500.0,0.00015,30]
[405993220,1771513650671,500.0,0.00015,30]
[405993221,1771513651696,500.0,0.00015,30]
[405993222,1771513652199,500.0,0.00015,30]
[405993912,1771513831857,-1034.19338381,7.328e-05,2]
[405993913,1771513831868,-57.90835206,7.328e-05,2]
[405993914,1771513831880,-304.637601,7.328e-05,2]
[405993915,1771513831914,-671.64743075,7.328e-05,2]
[405993916,1771513831924,-1692.9631744,8.285e-05,2]
[405993917,1771513831936,-473.6765,8.285e-05,2]
[405993918,1771513831948,-676.52,8.285e-05,2]
[405993926,1771513837900,-304.14982411,8.285e-05,2]
[405993927,1771513837911,-944.98501581,8.285e-05,2]
[405993928,1771513837923,-907.70548568,8.285e-05,2]
[405993929,1771513837932,-352.29451432,8.285e-05,2]
[405993930,1771513837944,-956.485885,8.285e-05,2]
[405993931,1771513837955,-3691.21960068,8.285e-05,2]
[405993932,1771513837966,-5000.0,8.285e-05,2]
[405993933,1771513837975,-5000.0,8.285e-05,2]
[405993934,1771513837984,-5000.0,8.285e-05,2]
[405993935,1771513837993,-907.6662,8.418e-05,2]
[405993936,1771513838003,-448.01245397,8.517e-05,2]
[405993937,1771513838013,-448.01245396,8.561e-05,2]
[405993938,1771513838022,-214.34557334,8.604e-05,2]
[405993939,1771513838032,-448.01245396,8.604e-05,2]
[405993940,1771513838041,-173.38,0.00010025,2]
[405993941,1771513838054,-2033.45,0.00010076,2]
[405993942,1771513838064,-173.38,0.00010582,2]
[405993943,1771513838074,-456.0,0.00010898,2]
[405993944,1771513838083,-975.716,0.00010899,2]
[405993945,1771513838093,-150.0,0.00010899,2]
[405993946,1771513838102,-2801.48364016,0.000109,2]
[405993947,1771513838112,-13407.41820084,0.000109,2]
[405993948,1771513838121,-11639.76244073,0.000109,2]
[405993949,1771513838130,-5452.96728037,0.000109,2]
[405993950,1771513838140,-7220.62304045,0.000109,2]
[405993951,1771513838150,-2000.0,0.000109,3]
[405993952,1771513838159,-456.0,0.00010953,2]
[405993953,1771513838169,-4130.002,0.00010972,2]
[405993954,1771513838178,-89466.7725,0.00010972,2]
[405993955,1771513838189,-456.0,0.00011008,2]
[405993957,1771513838198,-500.0,0.00011044,2]
[405993959,1771513838208,-150.0,0.00011044,2]
[405993961,1771513838217,-456.0,0.00011062,2]
[405993963,1771513838227,-151.0,0.00011065,2]
[405993965,1771513838236,-151.0,0.00011065,2]
[405993967,1771513838247,-151.0,0.00011065,2]
[405993969,1771513838256,-151.0,0.00011065,2]
[405993971,1771513838265,-151.0,0.00011065,2]
[405993973,1771513838275,-151.0,0.00011065,2]
[405993975,1771513838284,-151.0,0.00011065,2]
[405993977,1771513838293,-151.0,0.00011065,2]
[405993979,1771513838302,-151.0,0.00011065,2]
[405993981,1771513838313,-151.0,0.00011065,2]
[405993983,1771513838323,-151.0,0.00011065,2]
[405993985,1771513838332,-500.0,0.00011065,2]
[405993987,1771513838344,-500.0,0.00011065,2]
[405993989,1771513838356,-500.0,0.00011065,2]
[405993991,1771513838365,-500.0,0.00011065,2]
[405993993,1771513838375,-500.0,0.00011065,2]
[405993995,1771513838384,-500.0,0.00011065,2]
[405993997,1771513838395,-500.0,0.00011065,2]
[405994000,1771513838404,-500.0,0.00011065,2]
[405994003,1771513838413,-500.0,0.00011065,2]
[405994005,1771513838423,-500.0,0.00011065,2]
[405994008,1771513838433,-500.0,0.00011065,2]
[405994012,1771513838446,-228.19,0.00011069,2]
[405994014,1771513838455,-683493.81276707,0.00011072,2]
[405994016,1771513838468,-121282.18183293,0.00011072,2]
[405994018,1771513838478,-500.0,0.00011099,2]
[405994020,1771513838488,-1573.38181802,0.00011099,2]
[405994022,1771513838498,-550.78865049,0.00011099,2]
[405994024,1771513838508,-550.78865041,0.00011099,2]
[405994026,1771513838518,-456.0,0.00011117,2]
[405994028,1771513838528,-173.38,0.00011139,2]
[405994031,1771513838538,-500.0,0.00011154,2]
[405994032,1771513838547,-1039.0,0.00011172,2]
[405994034,1771513838557,-1338.0,0.00011172,2]
[405994036,1771513838567,-617.0,0.00011172,2]
[405994038,1771513838577,-3492.0,0.00011172,2]
[405994041,1771513838586,-150.0,0.00011172,2]
[405994043,1771513838598,-1275.0,0.00011172,2]
[405994045,1771513838607,-1209.0,0.00011172,2]
[405994047,1771513838616,-2453.0,0.00011172,2]
[405994049,1771513838625,-5974.0,0.00011172,2]
[405994051,1771513838635,-456.0,0.00011172,2]
[405994053,1771513838645,-500.0,0.00011208,2]
[405994055,1771513838654,-456.0,0.00011227,2]
[405994057,1771513838664,-3686.28,0.00011233,2]
[405994059,1771513838673,-521.28414643,0.00011263,2]
[405994061,1771513838683,-456.0,0.00011282,2]
[405994063,1771513838696,-456.0,0.00011336,2]
[405994065,1771513838706,-456.0,0.00011391,2]
[405994067,1771513838715,-456.0,0.00011446,2]
[405994068,1771513838724,-456.0,0.00011501,2]
[405994071,1771513838734,-456.0,0.00011556,2]
[405994073,1771513838743,-456.0,0.0001161,2]
[405994075,1771513838753,-456.0,0.00011665,2]
[405994077,1771513838763,-173.38,0.00011696,2]
[405994079,1771513838772,-550.78865041,0.00011714,2]
[405994081,1771513838782,-456.0,0.0001172,2]
[405994083,1771513838792,-456.0,0.00011775,2]
[405994085,1771513838801,-456.0,0.0001183,2]
[405994087,1771513838811,-456.0,0.00011884,2]
[405994089,1771513838821,-456.0,0.00011939,2]
[405994091,1771513838830,-255.0,0.00011945,2]
[405994093,1771513838840,-456.0,0.00011994,2]
[405994095,1771513838853,-456.0,0.00012049,2]
[405994097,1771513838863,-500.0,0.00012075,2]
[405994099,1771513838872,-150.0,0.00012075,2]
[405994101,1771513838882,-1000.0,0.00012075,2]
[405994103,1771513838891,-1500.0,0.00012075,2]
[405994105,1771513838901,-456.0,0.00012103,2]
[405994107,1771513838911,-471.0,0.00012158,2]
[405994109,1771513838920,-173.38,0.00012253,2]
[405994111,1771513838930,-247.45,0.00012605,2]
[405994113,1771513838939,-173.38,0.0001281,2]
[405994115,1771513838948,-32855.2885,0.0001296,2]
[405994117,1771513838958,-1000.0,0.0001296,2]
[405994119,1771513838967,-186.66,0.0001298,2]
[405994121,1771513838976,-500.0,0.00013,2]
[405994123,1771513838986,-500.0,0.00013,2]
[405994125,1771513838996,-500.0,0.00013,2]
[405994127,1771513839007,-500.0,0.00013,2]
[405994130,1771513839016,-500.0,0.00013,2]
[405994132,1771513839025,-500.0,0.00013,2]
[405994134,1771513839035,-500.0,0.00013,2]
[405994136,1771513839045,-800.0,0.00013,2]
[405994138,1771513839054,-800.0,0.00013,2]
[405994140,1771513839064,-500.0,0.00013,2]
[405994142,1771513839074,-800.0,0.00013,2]
[405994144,1771513839083,-500.0,0.00013,2]
[405994146,1771513839093,-501.03439098,0.00013,2]
[405994148,1771513839103,-800.0,0.00013,2]
[405994150,1771513839113,-501.35556143,0.00013,2]
[405994152,1771513839122,-500.0,0.00013,2]
[405994154,1771513839132,-800.0,0.00013,2]
[405994156,1771513839142,-500.0,0.00013,2]
[405994158,1771513839152,-800.0,0.00013,2]
[405994160,1771513839161,-500.0,0.00013,2]
[405994162,1771513839171,-800.0,0.00013,2]
[405994164,1771513839180,-500.0,0.00013,2]
[405994166,1771513839190,-500.0,0.00013,2]
[405994168,1771513839200,-500.0,0.00013,2]
[405994170,1771513839210,-800.0,0.00013,2]
[405994172,1771513839220,-500.0,0.00013,2]
[405994173,1771513839230,-800.0,0.00013,2]
[405994174,1771513839242,-500.0,0.00013,2]
[405994175,1771513839252,-500.0,0.00013,2]
[405994176,1771513839262,-500.0,0.00013,2]
[405994177,1771513839271,-800.0,0.00013,2]
[405994178,1771513839280,-500.0,0.00013,2]
[405994179,1771513839290,-500.0,0.00013,2]
[405994180,1771513839300,-500.0,0.00013,2]
[405994181,1771513839310,-800.0,0.00013,2]
[405994182,1771513839321,-500.83530673,0.00013,2]
[405994184,1771513839331,-500.0,0.00013,2]
[405994186,1771513839341,-500.0,0.00013,2]
[405994188,1771513839353,-500.0,0.00013,2]
[405994190,1771513839363,-800.0,0.00013,2]
[405994192,1771513839373,-800.0,0.00013,2]
[405994194,1771513839383,-503.32548929,0.00013,2]
[405994196,1771513839393,-500.0,0.00013,2]
[405994198,1771513839403,-500.0,0.00013,2]
[405994200,1771513839412,-600.0,0.00013,2]
[405994202,1771513839422,-500.0,0.00013,2]
[405994204,1771513839433,-1358.65461334,0.00013,2]
[405994206,1771513839443,-800.0,0.00013,2]
[405994207,1771513839452,-500.0,0.00013,2]
[405994209,1771513839462,-500.0,0.00013,2]
[405994211,1771513839471,-800.0,0.00013,2]
[405994213,1771513839481,-500.0,0.00013,2]
[405994215,1771513839490,-800.0,0.00013,2]
[405994218,1771513839500,-500.0,0.00013,2]
[405994220,1771513839509,-500.0,0.00013,2]
[405994222,1771513839519,-800.0,0.00013,2]
[405994224,1771513839528,-800.0,0.00013,2]
[405994226,1771513839538,-500.0,0.00013,2]
[405994228,1771513839548,-800.0,0.00013,2]
[405994230,1771513839557,-2500.0,0.00013,2]
[405994232,1771513839567,-500.0,0.00013,2]
[405994234,1771513839578,-800.0,0.00013,2]
[405994236,1771513839588,-500.0,0.00013,2]
[405994238,1771513839597,-2500.0,0.00013,2]
[405994240,1771513839607,-500.0,0.00013,2]
[405994242,1771513839616,-500.0,0.00013,2]
[405994244,1771513839625,-800.0,0.00013,2]
[405994246,1771513839634,-2500.0,0.00013,2]
[405994248,1771513839644,-500.0,0.00013,2]
[405994250,1771513839653,-500.0,0.00013,2]
[405994252,1771513839663,-800.0,0.00013,2]
[405994254,1771513839672,-2500.0,0.00013,2]
[405994256,1771513839695,-500.0,0.00013,2]
[405994258,1771513839705,-800.0,0.00013,2]
[405994260,1771513839714,-2500.0,0.00013,2]
[405994262,1771513839724,-504.37882443,0.00013,2]
[405994264,1771513839733,-600.0,0.00013,2]
[405994266,1771513839742,-800.0,0.00013,2]
[405994269,1771513839752,-2500.0,0.00013,2]
[405994271,1771513839762,-500.0,0.00013,2]
[405994301,1771513840016,-800.0,0.00013,2]
[405994303,1771513840027,-2500.0,0.00013,2]
[405994305,1771513840036,-500.0,0.00013,2]
[405994307,1771513840045,-800.0,0.00013,2]
[405994309,1771513840054,-2500.0,0.00013,2]
[405994311,1771513840064,-500.0,0.00013,2]
[405994313,1771513840074,-823.61122367,0.00013,2]
[405994316,1771513840084,-2500.0,0.00013,2]
[405994317,1771513840095,-500.0,0.00013,2]
[405994320,1771513840105,-2500.0,0.00013,2]
[405994322,1771513840114,-500.0,0.00013,2]
[405994324,1771513840124,-2500.0,0.00013,2]
[405994325,1771513840136,-500.0,0.00013,2]
[405994328,1771513840146,-509.03673562,0.00013,2]
[405994330,1771513840160,-2500.0,0.00013,2]
[405994332,1771513840170,-2500.0,0.00013,2]
[405994334,1771513840179,-3542.82650485,0.00013,2]
[405994336,1771513840188,-500.0,0.00013,2]
[405994338,1771513840198,-500.0,0.00013,2]
[405994340,1771513840207,-503.26082605,0.00013,2]
[405994342,1771513840216,-500.0,0.00013,2]
[405994344,1771513840225,-500.0,0.00013,2]
[405994346,1771513840235,-500.0,0.00013,2]
[405994348,1771513840244,-500.0,0.00013,2]
[405994350,1771513840253,-500.0,0.00013,2]
[405994352,1771513840262,-591.29965189,0.00013,2]
[405994354,1771513840271,-433.0,0.0001309,2]
[405994356,1771513840280,-471.14,0.000132,2]
[405994358,1771513840289,-422.14,0.000132,2]
[405994360,1771513840299,-550.78865041,0.00013312,2]
[405994362,1771513840308,-173.38,0.00013367,2]
[405994364,1771513840317,-1000.0,0.00013584,2]
[405994366,1771513840327,-500.0,0.00013698,2]
[405994368,1771513840336,-513.62,0.00013698,2]
[405994369,1771513840346,-500.0,0.00013698,2]
[405994372,1771513840362,-168.89,0.00013698,2]
[405994374,1771513840371,-500.0,0.00013698,2]
[405994376,1771513840381,-500.0,0.00013698,2]
[405994378,1771513840392,-500.0,0.00013698,2]
[405994379,1771513840402,-500.0,0.00013698,2]
[405994382,1771513840412,-634.99,0.00013698,2]
[405994383,1771513840426,-500.0,0.00013698,2]
[405994385,1771513840436,-352.67828665,0.00013698,2]
[405994387,1771513840445,-1573.38181796,0.00013722,2]
[405994390,1771513840456,-173.66088786,0.00013837,2]
[405994391,1771513840465,-173.38,0.00013924,2]
[405994394,1771513840475,-1039.0,0.00014172,2]
[405994395,1771513840488,-1338.0,0.00014172,2]
[405994398,1771513840498,-617.0,0.00014172,2]
[405994400,1771513840507,-3492.0,0.00014172,2]
[405994402,1771513840518,-1275.0,0.00014172,2]
[405994404,1771513840528,-1209.0,0.00014172,2]
[405994406,1771513840538,-2453.0,0.00014172,2]
[405994408,1771513840549,-5974.0,0.00014172,2]
[405994410,1771513840563,-736.0,0.00014354,2]
[405994412,1771513840573,-693.3919763,0.0001444,2]
[405994414,1771513840582,-277.35679052,0.0001444,2]
[405994416,1771513840591,-173.38,0.00014481,2]
[405994418,1771513840600,-719.04747942,0.00014495,2]
[405994420,1771513840610,-299.99,0.00014504,2]
[405994422,1771513840619,-745.65223616,0.0001455,2]
[405994424,1771513840630,-773.2413689,0.00014605,2]
[405994426,1771513840639,-151.0,0.00014634,2]
[405994428,1771513840650,-151.0,0.00014634,2]
[405994430,1771513840659,-801.85129955,0.0001466,2]
[405994432,1771513840669,-831.51979763,0.00014715,2]
[405994434,1771513840678,-862.28603014,0.0001477,2]
[405994436,1771513840687,-894.19061326,0.00014825,2]
[405994438,1771513840696,-927.27566595,0.0001488,2]
[405994440,1771513840706,-176.09216216,0.000149,2]
[405994442,1771513840715,-176.09216214,0.000149,2]
[405994444,1771513840724,-339.10702873,0.00014909,2]
[405994446,1771513840733,-550.78865041,0.0001491,2]
[405994448,1771513840743,-961.58486559,0.00014935,2]
[405994451,1771513840756,-287.61899177,0.00014988,2]
[405994453,1771513840766,-997.16350561,0.0001499,2]
[405994455,1771513840775,-163.0,0.00015,3]
[405994457,1771513840785,-155.0,0.00015,3]
[405994459,1771513840795,-250.0,0.00015,2]
[405994461,1771513840805,-173.38,0.00015038,2]
[405994463,1771513840815,-1000.0,0.00015094,2]
[405994465,1771513840825,-177.3195448,0.00015285,2]
[405994467,1771513840835,-298.26089446,0.00015536,2]
[405994469,1771513840844,-188.23,0.00015635,2]
[405994471,1771513840853,-1252.0,0.00015727,2]
[405994473,1771513840864,-2602.330865,0.00015894,7]
[405994475,1771513840873,-5000.0,0.0001596,2]
[405994477,1771513840884,-309.29654756,0.00016084,2]
[405994479,1771513840893,-9999.99,0.00016116,2]
[405994481,1771513840902,-303.0,0.000164,2]
[405994483,1771513840912,-260.8,0.00016438,2]
[405994485,1771513840922,-1573.38181796,0.00016446,2]
[405994487,1771513840931,-550.78865041,0.00016508,2]
[405994489,1771513840940,-1000.0,0.00016603,2]
[405994491,1771513840950,-433.28706864,0.00016632,2]
[405994493,1771513840961,-309.0,0.000169,2]
[405994495,1771513840971,-3405.03283077,0.00016913,2]
[405994497,1771513840981,-500.0,0.00017,2]
[405994499,1771513840991,-500.0,0.00017,2]
[405994501,1771513841000,-500.0,0.00017,2]
[405994503,1771513841010,-500.0,0.00017,2]
[405994505,1771513841020,-510.8519794,0.00017,2]
[405994507,1771513841030,-500.0,0.00017,2]
[405994509,1771513841041,-500.0,0.00017,2]
[405994511,1771513841051,-500.0,0.00017,2]
[405994513,1771513841060,-500.0,0.00017,2]
[405994516,1771513841072,-248.69618497,0.00017,2]
[405994517,1771513841083,-500.0,0.00017,2]
[405994519,1771513841093,-500.0,0.00017,2]
[405994521,1771513841102,-500.0,0.00017,2]
[405994524,1771513841112,-150.0,0.00017,2]
[405994526,1771513841122,-500.0,0.00017,2]
[405994528,1771513841131,-500.0,0.00017,2]
[405994530,1771513841140,-500.0,0.00017,2]
[405994532,1771513841150,-500.0,0.00017,2]
[405994534,1771513841159,-500.0,0.00017,2]
[405994536,1771513841168,-500.0,0.00017,2]
[405994538,1771513841177,-500.0,0.00017,2]
[405994540,1771513841187,-504.94826631,0.00017,2]
[405994542,1771513841196,-320.41394167,0.00017,2]
[405994544,1771513841205,-500.0,0.00017,2]
[405994546,1771513841214,-500.0,0.00017,2]